[Event "FIDE WTC Prel-B 2022"]
[Site "Jerusalem"]
[Date "2022.11.20"]
[Round "1.13"]
[White "Vidit, Santosh Gujrathi"]
[Black "Rodshtein, Maxim"]
[Result "1/2-1/2"]
[ECO "D52"]
[WhiteElo "2724"]
[BlackElo "2618"]
[Annotator "TA"]
[PlyCount "104"]
[EventDate "2022.11.20"]
[EventType "team-tourn"]
[EventCountry "ISR"]
[SourceTitle "playchess.com"]
[Source "ChessBase"]
[SourceQuality "1"]
[WhiteTeam "India"]
[BlackTeam "Israel"]
[WhiteTeamCountry "IND"]
[BlackTeamCountry "ISR"]
[TimeControl "2700+10"]

{[%evp 13,104,33,36,33,30,36,34,19,32,7,18,20,19,0,12,0,6,-8,-8,-8,-8,-8,-8,-4,-5,-7,-10,-47,-45,-38,-8,-5,0,0,0,0,0,0,0,0,0,0,0,0,74,68,71,74,60,68,71,64,68,69,85,77,85,75,97,97,105,102,100,53,76,54,54,54,54,0,68,54,54,36,167,180,355,277,301,0,0,0,0,0,0,0,0,0,0,0,0,0,0]} 1. d4 {[%emt 0:00:17] Tomashevsky,E} Nf6 {[%emt 0:00:06]} 2. c4 {[%emt 0:00:05]} e6 {[%emt 0:00:05]} 3. Nf3 {[%emt 0:00:04]} d5 {[%emt 0:00:11]} 4. Nc3 {[%emt 0:00:08]} c6 {[%emt 0:00:15]} 5. Bg5 {[%emt 0:00:08]} Nbd7 {[%emt 0:00:54]} 6. e3 {[%emt 0:00:06]} Qa5 {[%emt 0:00:10]} 7. cxd5 {[%emt 0:02:50]} Nxd5 {[%emt 0:00:09]} 8. Rc1 {[%emt 0:00:17][%cal Ba1c1,Bc1c2,Bc2e2,Be2e3][%mdl 32] D52: Queen's Gambit Declined: Cambridge Springs Variation.} Nxc3 {[%emt 0:01:08] 8...Bb4 deserves study.} 9. bxc3 {[%emt 0:00:02]} Ba3 {[%emt 0:00:22]} 10. Rc2 {[%emt 0:00:03] White is slightly better.} b6 {[%emt 0:00:10]} 11. Be2 {[%emt 0:00:31]} Ba6 {[%emt 0:00:46]} 12. O-O {[%emt 0:00:10]} Bxe2 {[%emt 0:00:12]} 13. Rxe2 {[%emt 0:00:34]} O-O {[%emt 0:00:26]} 14. e4 {[%emt 0:03:34]} Rfe8 {[%emt 0:00:43] [#]} 15. e5 $146 {[%emt 0:05:13]} ({Predecessor:} 15. Re3 Bf8 16. e5 Qxa2 17. Nd2 c5 18. Ne4 cxd4 19. cxd4 Rac8 20. Qg4 Rc4 21. Rf3 Rxd4 {1-0 (34) Tomashevsky,E (2743)-Ipatov,A (2624) Reykjavik 2015 CBM 170 [Tomashevsky,E]}) 15... Qxc3 {[%emt 0:03:08]} 16. Re3 {[%emt 0:04:09]} Qa5 {[%emt 0:00:08]} 17. Nd2 $1 {[%emt 0:00:05]} Be7 $1 {[%emt 0:00:29]} 18. Bxe7 {[%emt 0:05:56]} Rxe7 {[%emt 0:00:03]} 19. Ne4 $1 {[%emt 0:00:02]} Rf8 {[%emt 0:02:55]} 20. Qh5 {[%emt 0:06:03]} Qd5 $1 {[%emt 0:15:44]} 21. Rfe1 {[%emt 0:00:50]} ({Much weaker is} 21. Ng5 h6 22. Ne4 f5 $17) 21... f6 {[%emt 0:02:45]} 22. Rh3 $132 {[%emt 0:05:12][%mdl 2048] White is not keeping still} g6 {[%emt 0:07:27]} 23. Qh4 {[%emt 0:00:10][%cal Re5f6]} Ref7 {[%emt 0:00:42]} 24. exf6 {[%emt 0:02:18]} Qxd4 {[%emt 0:01:46][%cal Rd7f6]} 25. Ng5 $1 {[%emt 0:00:46][%csl LRd4,LRe6,LRf7,LRh7]} Qxh4 {[%emt 0:00:21]} 26. Rxh4 {[%emt 0:00:01]} Nxf6 {[%emt 0:00:07]} 27. Nxf7 {[%emt 0:01:57]} Kxf7 $11 {[%emt 0:00:03][%mdl 4096] Endgame KRR-KRN} 28. g4 {[%emt 0:05:27][%cal Bg2g4,Bg4g5][%mdl 32]} Rd8 {[%emt 0:04:43]} (28... h5 $11 {keeps the balance.}) 29. g5 $16 {[%emt 0:00:02][%mdl 1024] [#] Rf4 is the strong threat. White has strong compensation.} Nh5 {[%emt 0:00:02] Against Rf4+} 30. Ra4 {[%emt 0:00:09]} Rd7 {[%emt 0:00:25]} 31. Re3 {[%emt 0:00:31]} Ke7 {[%emt 0:01:10]} 32. Rea3 {[%emt 0:01:19] White is more active.} a5 {[%emt 0:01:29]} 33. Rb3 {[%emt 0:00:01]} b5 {[%emt 0:00:29]} 34. Rxa5 {[%emt 0:00:02]} Nf4 {[%emt 0:00:04][%cal Rd7d1] [#]} 35. h4 {[%emt 0:00:12]} Kd6 {[%emt 0:00:20]} 36. a4 {[%emt 0:00:36]} bxa4 {[%emt 0:00:39]} 37. Rxa4 {[%emt 0:00:04]} e5 {[%emt 0:00:10]} 38. f3 {[%emt 0:01:08]} (38. Rba3 $16) 38... Kd5 {[%emt 0:00:27]} 39. Kf2 {[%emt 0:00:11]} c5 {[%emt 0:00:10]} 40. Ke3 {[%emt 0:00:14]} Ng2+ {[%emt 0:00:05]} 41. Kf2 {[%emt 0:00:10]} (41. Ke2 $5 {[%cal Rb3d3]} Nf4+ 42. Ke3 $14) 41... Nf4 {[%emt 0:00:01] Inhibits Rd3+.} 42. Rb1 {[%emt 0:00:14] Strongly threatening Rd1+.} Ne6 {[%emt 0:00:13]} 43. Rba1 {[%emt 0:00:15] Threatens to win with Ra7.} Rf7 {[%emt 0:00:23]} ({Black should try} 43... Rb7 $14) 44. Ra7 $18 {[%emt 0:00:04]} Rf4 {[%emt 0:00:06]} (44... Nc7 {is a better defense.} 45. Ke2 Re7) 45. Rxh7 {[%emt 0:00:17]} Nd4 {[%emt 0:00:17]} 46. h5 $2 {[%emt 0:00:11]} (46. Ra3 $18) 46... Rxf3+ $11 {[%emt 0:00:10] The position is equal.} 47. Kg2 {[%emt 0:00:05]} Rf5 $1 {[%emt 0:00:03]} 48. h6 {[%emt 0:00:05]} Rxg5+ {[%emt 0:00:02]} 49. Kf2 {[%emt 0:00:00]} Rf5+ {[%emt 0:00:08]} 50. Kg2 {[%emt 0:00:03] And now Rd7+ would win.} Rg5+ {[%emt 0:00:01]} 51. Kf2 {[%emt 0:00:01] aiming for Rh1.} Rf5+ {[%emt 0:00:02]} 52. Kg2 {[%emt 0:00:01] Hoping for Rd7+.} Rg5+ {[%emt 0:00:13] Weighted Error Value: White=0.14 (very precise) /Black=0.15 (very precise)} 1/2-1/2

[Event "FIDE WTC Prel-B 2022"]
[Site "Jerusalem"]
[Date "2022.11.20"]
[Round "1.14"]
[White "Nabaty, Tamir"]
[Black "Nihal Sarin"]
[Result "1/2-1/2"]
[ECO "B13"]
[WhiteElo "2629"]
[BlackElo "2670"]
[Annotator "TA"]
[PlyCount "88"]
[EventDate "2022.11.20"]
[EventType "team-tourn"]
[EventCountry "ISR"]
[SourceTitle "playchess.com"]
[Source "ChessBase"]
[SourceQuality "1"]
[WhiteTeam "Israel"]
[BlackTeam "India"]
[WhiteTeamCountry "ISR"]
[BlackTeamCountry "IND"]
[TimeControl "2700+10"]

{[%evp 9,88,0,0,0,0,0,0,0,0,0,0,0,0,0,0,0,8,11,15,11,22,-29,-14,-19,-12,-29,-9,-17,-8,-12,-6,-4,-22,-13,-11,-66,-60,-69,-47,-50,-60,-55,-25,-43,-29,-19,0,0,0,0,0,0,27,31,27,0,0,0,0,0,0,0,0,0,0,0,0,0,0,0,0,0,0,0,0,0,0,0,0,0,0]} 1. d4 {[%emt 0:00:01]} d5 {[%emt 0:00:10]} 2. Bf4 {[%emt 0:00:02]} c5 {[%emt 0:00:35]} 3. e3 {[%emt 0:00:02]} cxd4 {[%emt 0:00:09]} 4. exd4 {[%emt 0:00:02]} Nc6 {[%emt 0:00:02]} 5. Bb5 {[%emt 0:01:07]} Nf6 {[%emt 0:03:18]} 6. Nf3 {[%emt 0:00:12] B13: Caro-Kann: Exchange Variation and Panov-Botvinnik Attack.} Qa5+ $1 {[%emt 0:00:14][%mdl 4] is recently more successful than 6...Bg4.} 7. Nc3 {[%emt 0:00:04]} Bg4 {[%emt 0:00:02]} 8. h3 {[%emt 0:01:15]} Bxf3 {[%emt 0:00:04]} 9. Qxf3 {[%emt 0:00:02]} e6 {[%emt 0:00:04]} 10. a3 {[%emt 0:01:40]} Rc8 {[%emt 0:01:15]} 11. O-O {[%emt 0:06:36] [#]} Be7 $146 {[%emt 0:00:06]} ({Predecessor:} 11... Qb6 12. Rfe1 Be7 13. Be3 O-O 14. Bd3 Na5 15. Qg3 Nc4 16. Na4 Qc6 17. Bh6 Ne8 {0-1 (27) Neumann,U-Hoeppenstein,M DESC email 2010}) 12. Be3 {[%emt 0:01:09]} Qb6 {[%emt 0:02:28]} 13. Bd3 {[%emt 0:00:48]} O-O {[%emt 0:04:33]} (13... Nxd4 14. Qf4 e5 15. Qxe5 $16) (13... Qxb2 $2 14. Na4 Nxd4 15. Qf4 (15. Nxb2 Nxf3+ 16. gxf3 Bc5 $16) 15... Qxc2 16. Qxd4 $18) 14. Ne2 {[%emt 0:00:14]} Rfe8 {[%emt 0:00:24]} (14... Qxb2 $2 15. Rfb1 Ne5 16. dxe5 Qxe5 17. Bf4 $18) 15. b3 {[%emt 0:02:54]} (15. c3 $142) 15... Qd8 {[%emt 0:02:49]} (15... Qc7 {with more complications.} 16. Qg3 Bd6 17. f4 Na5) 16. Rfd1 {[%emt 0:00:37]} a6 {[%emt 0:02:46]} 17. Nf4 {[%emt 0:01:11]} g6 {[%emt 0:02:19]} 18. g4 {[%emt 0:03:41]} Bf8 {[%emt 0:07:05]} 19. Qg2 {[%emt 0:05:27]} (19. c4 {keeps more tension.} dxc4 20. bxc4 Nxd4 21. Bxd4 Qxd4 22. g5) 19... Bg7 {[%emt 0:00:09]} 20. c4 {[%emt 0:02:35]} dxc4 {[%emt 0:11:05]} 21. Bxc4 {[%emt 0:00:58]} b5 {[%emt 0:02:26]} 22. Be2 {[%emt 0:01:29]} ({Better is} 22. d5 $11 bxc4 23. dxc6) 22... Ne7 $1 $15 {[%emt 0:00:01][%cal Bc6e7,Be7d5,Bd5c3][%mdl 32]} 23. a4 {[%emt 0:01:38]} Ned5 {[%emt 0:02:06]} 24. axb5 {[%emt 0:00:15]} Nc3 $1 {[%emt 0:01:31][%csl LRb5,LRd1] [#] Strongly threatening ...g5. Pair of Knights!} ({Resist} 24... Rc2 25. Qf3 $16) 25. Re1 {[%emt 0:07:57][%cal Bd1e1,Be1e2,Be2d2][%mdl 32]} ({Avoid the trap} 25. Rxa6 $2 e5 26. dxe5 Nxe2+ 27. Nxe2 Qxd1+ 28. Qf1 Qxf1+ 29. Kxf1 Nd5 $19) ({But not} 25. bxa6 g5 26. Nh5 Nxe2+ 27. Kf1 Nf4 28. Bxf4 gxf4 29. Nxf4 Re7 $17) 25... Nxe2+ {[%emt 0:00:03]} 26. Rxe2 {[%emt 0:00:02]} axb5 {[%emt 0:00:01]} 27. Qb7 {[%emt 0:00:18] Black must now prevent Ra7.} Nd5 {[%emt 0:03:11]} 28. Nxd5 {[%emt 0:00:14]} Qxd5 {[%emt 0:00:00]} 29. Ra7 {[%emt 0:00:40]} Qxb7 {[%emt 0:00:05]} 30. Rxb7 {[%emt 0:00:01]} Red8 {[%emt 0:00:47]} 31. Rd2 {[%emt 0:02:07]} Rd5 {[%emt 0:00:16]} 32. Kg2 {[%emt 0:01:22][%cal Od2c2]} (32. Rc2 $5 {[%cal Rc2c8]} Rf8 33. Rc5 $11) 32... h5 {[%emt 0:00:03] The position is equal.} 33. gxh5 {[%emt 0:01:21]} gxh5 {[%emt 0:00:01]} 34. Ra2 {[%emt 0:00:13]} Rcd8 {[%emt 0:00:30]} 35. Raa7 {[%emt 0:00:27]} Rf5 {[%emt 0:00:02]} 36. Rd7 {[%emt 0:01:02]} Rxd7 {[%emt 0:00:02]} 37. Rxd7 $11 {[%emt 0:00:01][%mdl 4096] Endgame KRB-KRB} Kh7 {[%emt 0:00:01]} 38. Rc7 {[%emt 0:01:09]} Kg6 {[%emt 0:00:06]} 39. Rc5 {[%emt 0:00:02]} Bf8 {[%emt 0:00:18]} 40. Rc8 {[%emt 0:00:08]} Bg7 {[%emt 0:00:16]} 41. f4 {[%emt 0:00:43]} Rd5 {[%emt 0:00:05]} 42. Rc5 {[%emt 0:00:02]} Bf8 {[%emt 0:00:08]} 43. Rc8 {[%emt 0:00:03]} Bg7 {[%emt 0:00:02]} 44. Rc5 $1 {[%emt 0:00:02]} Bf8 {[%emt 0:00:24] Weighted Error Value: White=0.07 (flawless) /Black=0.04 (flawless)} 1/2-1/2

[Event "FIDE WTC Prel-B 2022"]
[Site "Jerusalem"]
[Date "2022.11.20"]
[Round "1.15"]
[White "Sethuraman, S.P."]
[Black "Boruchovsky, Avital"]
[Result "1/2-1/2"]
[ECO "C84"]
[WhiteElo "2643"]
[BlackElo "2552"]
[Annotator "TA"]
[PlyCount "160"]
[EventDate "2022.11.20"]
[EventType "team-tourn"]
[EventCountry "ISR"]
[SourceTitle "playchess.com"]
[Source "ChessBase"]
[SourceQuality "1"]
[WhiteTeam "India"]
[BlackTeam "Israel"]
[WhiteTeamCountry "IND"]
[BlackTeamCountry "ISR"]
[TimeControl "2700+10"]

{[%evp 16,160,24,14,11,14,15,16,13,9,20,25,17,0,0,0,7,-21,0,0,0,0,10,10,48,13,22,10,19,0,27,12,18,16,54,20,18,6,4,0,10,0,33,0,0,0,28,33,27,33,28,34,37,54,176,39,37,30,256,250,354,56,156,116,160,0,170,176,168,150,168,182,200,125,225,236,212,222,343,356,333,210,1143,448,518,504,527,537,538,500,655,637,569,518,729,677,730,716,502,8,46,46,46,46,46,46,987,987,976,971,945,941,935,422,379,371,856,897,890,887,870,852,662,0,756,206,815,688,779,0,49,49,49,0,49,0,49,0,647,0,56,56,56,0,9,0,259]} 1. e4 {[%emt 0:00:06]} e5 {[%emt 0:00:08]} 2. Nf3 {[%emt 0:00:03]} Nc6 {[%emt 0:00:05]} 3. Bb5 {[%emt 0:00:03]} a6 {[%emt 0:00:08]} 4. Ba4 {[%emt 0:00:03]} Nf6 {[%emt 0:00:05]} 5. d3 {[%emt 0:00:03]} b5 {[%emt 0:00:30]} 6. Bb3 {[%emt 0:00:05]} Be7 {[%emt 0:00:16]} 7. O-O {[%emt 0:00:17]} Bb7 {[%emt 0:00:06]} 8. a4 {[%emt 0:02:00]} O-O {[%emt 0:00:45]} 9. Nc3 {[%emt 0:00:04]} Na5 {[%emt 0:00:06] C84: Closed Ruy Lopez: Unusual White 6th moves.} 10. Bd5 $1 {[%emt 0:00:47][%mdl 4] now scores much better than the old 10.Ba2.} c6 {[%emt 0:01:04][%cal Bc7c6,Bc6c5,Bc5c4,Bc4c3][%mdl 32]} 11. Ba2 {[%emt 0:00:03]} b4 {[%emt 0:00:03]} 12. Ne2 {[%emt 0:00:03]} Qc7 {[%emt 0:00:06]} 13. Ng3 {[%emt 0:05:06]} d5 {[%emt 0:02:09]} 14. Bg5 {[%emt 0:01:56]} dxe4 {[%emt 0:07:22]} 15. dxe4 {[%emt 0:03:53]} c5 {[%emt 0:02:15] [#]} 16. Qe1 $146 {[%emt 0:08:15]} ({Predecessor:} 16. Qe2 g6 17. Bxf6 Bxf6 18. Bd5 Rfd8 19. Rfd1 Kg7 20. Rab1 Nc6 21. c3 Ne7 22. Bxb7 Qxb7 {½-½ (40) Neborak,Y (2323)-Peet,W (2258) ICCF email 2017}) 16... h6 {[%emt 0:04:42]} 17. Bxf6 {[%emt 0:04:03]} Bxf6 {[%emt 0:00:39]} 18. Rd1 {[%emt 0:00:13]} Rad8 {[%emt 0:01:29]} 19. Bd5 {[%emt 0:00:37]} Bc8 {[%emt 0:10:52]} 20. Qe2 {[%emt 0:02:20]} (20. c3 $5 {[%cal Rc3b4]}) 20... c4 {[%emt 0:02:20]} 21. Rfe1 {[%emt 0:00:30]} c3 {[%emt 0:02:26]} 22. b3 {[%emt 0:00:43]} Rd6 {[%emt 0:00:54]} 23. Nf1 {[%emt 0:02:59]} Rfd8 {[%emt 0:00:45]} 24. Ne3 {[%emt 0:00:02]} Qe7 {[%emt 0:01:04]} 25. g3 {[%emt 0:00:52]} g6 {[%emt 0:01:44]} 26. h4 {[%emt 0:00:35][%cal Oh4h5]} h5 {[%emt 0:00:42]} 27. Rd3 {[%emt 0:02:10]} Kg7 {[%emt 0:00:53]} 28. Red1 {[%emt 0:00:13]} R6d7 {[%emt 0:00:22]} 29. Rf1 {[%emt 0:02:15]} Qc5 {[%emt 0:00:39]} 30. Rdd1 {[%emt 0:01:45]} Rd6 {[%emt 0:00:51]} 31. Ng5 {[%emt 0:01:07]} Bxg5 {[%emt 0:01:01]} 32. hxg5 {[%emt 0:00:02]} Bh3 {[%emt 0:01:40]} 33. Rfe1 {[%emt 0:00:19]} Nc6 {[%emt 0:00:01] White must now prevent ...Nd4.} 34. Qf3 {[%emt 0:02:49]} ({Much worse is} 34. Qxa6 Nd4 35. Qc4 Qxc4 36. Nxc4 Nxc2 37. Nxd6 Rxd6 $17) 34... R8d7 {[%emt 0:01:01]} (34... Rf8 $14) 35. Bxc6 {[%emt 0:01:38]} (35. Qh1 $1 $18 {[%cal Rh1h3]} Be6 36. g4) 35... Qxc6 $14 {[%emt 0:00:22]} 36. Rd5 {[%emt 0:00:05]} Rxd5 $2 {[%emt 0:00:56]} (36... f5 $11) 37. exd5 $18 {[%emt 0:00:04]} ({Inferior is} 37. Nxd5 a5 $11) 37... Qd6 {[%emt 0:00:03]} (37... Qb6 $142 38. Nc4 Qd8) 38. Qe4 $2 {[%emt 0:01:12]} (38. Qh1 $18) 38... Re7 {[%emt 0:00:18]} (38... Rd8 $1 $14) 39. Nc4 $16 {[%emt 0:00:20][%csl LRd6,LRe5]} Qc5 {[%emt 0:00:01]} 40. Ne3 $2 {[%emt 0:01:05] Against Bf5} ({Stronger than} 40. Nxe5 Bf5 41. Qf3 Qd4 $17) (40. Qf3 $1 $16 {[%cal Rf3f6]}) 40... Qd4 $2 {[%emt 0:00:28]} (40... Qd6 $11 {and Black has nothing to worry.}) 41. Qf3 $1 $36 {[%emt 0:00:18][%mdl 2048] Threatens to win with Qf6+. Keeping Black busy.} e4 {[%emt 0:00:08]} 42. Qf4 {[%emt 0:00:04]} Qe5 {[%emt 0:00:21]} 43. Rd1 {[%emt 0:00:13]} Bd7 {[%emt 0:00:17]} 44. a5 {[%emt 0:00:23]} Re8 {[%emt 0:00:03]} (44... f6 $16 {was necessary.}) 45. Qxe5+ {[%emt 0:00:41]} Rxe5 {[%emt 0:00:02][%mdl 4096] Endgame KRB-KRN} 46. Rd4 {[%emt 0:00:00]} Rxg5 {[%emt 0:00:16]} (46... Kf8 $142 47. Rxb4 Bb5) 47. Rxe4 {[%emt 0:00:02]} Bb5 {[%emt 0:00:16]} 48. Rxb4 {[%emt 0:00:03]} Kf8 $2 {[%emt 0:00:06] [#]} (48... Re5 49. Kg2 Re8) 49. Re4 {[%emt 0:00:09]} (49. Rxb5 $142 $1 {[%mdl 512]} f5 50. Rb6) 49... f6 {[%emt 0:00:08]} 50. Kg2 {[%emt 0:00:11]} Re5 {[%emt 0:00:02]} 51. Rxe5 {[%emt 0:00:26]} fxe5 {[%emt 0:00:01] KB-KN} 52. Kf3 {[%emt 0:00:06]} Ke7 {[%emt 0:00:49]} 53. Ke4 {[%emt 0:00:14]} Kf6 {[%emt 0:00:00]} 54. Nc4 {[%emt 0:00:13]} g5 {[%emt 0:00:00]} 55. Nxe5 {[%emt 0:00:03]} h4 {[%emt 0:00:00]} 56. Ng4+ {[%emt 0:00:20]} Ke7 {[%emt 0:00:00]} 57. Nh2 $2 {[%emt 0:00:13]} (57. gxh4 $18 gxh4 58. Ne3) 57... h3 {[%emt 0:00:00]} 58. Kd4 {[%emt 0:00:04]} Kd6 {[%emt 0:00:00]} 59. Kxc3 {[%emt 0:00:12]} Kxd5 {[%emt 0:00:00]} 60. Kd2 {[%emt 0:00:01] c4+ is the strong threat.} Ke4 $2 {[%emt 0:00:12][%mdl 8192]} (60... Be8 $14) 61. f3+ {[%emt 0:00:04]} Ke5 {[%emt 0:00:13]} 62. Ke3 {[%emt 0:00:02]} Bd7 {[%emt 0:00:15]} 63. c4 {[%emt 0:00:26]} Be6 {[%emt 0:00:10]} 64. Kd3 {[%emt 0:00:07]} (64. f4+ $142 gxf4+ 65. gxf4+ Kd6 66. Ke4) 64... Bf5+ {[%emt 0:00:21]} 65. Kc3 $1 {[%emt 0:00:09]} Bd7 $2 {[%emt 0:00:27] [#]} (65... Be6 66. Kd3 Bc8) 66. b4 $1 {[%emt 0:00:04]} Bc6 {[%emt 0:00:03]} 67. Kd3 {[%emt 0:00:01]} Bd7 {[%emt 0:00:06]} 68. Ke3 {[%emt 0:00:07]} Be6 {[%emt 0:00:02]} 69. Kd3 {[%emt 0:00:06]} Bd7 $1 {[%emt 0:00:01] [#] Prevents b5.} 70. Nf1 $1 {[%emt 0:00:30]} Bf5+ $2 {[%emt 0:00:15]} (70... Bc6 71. Ke3 Kf5) 71. Ke3 {[%emt 0:00:10]} Be6 {[%emt 0:00:02]} 72. Kd3 $2 {[%emt 0:00:05]} (72. f4+ $18 gxf4+ 73. gxf4+ Kd6 74. Kd4) 72... Bf5+ $1 $14 {[%emt 0:00:01]} 73. Kc3 {[%emt 0:00:25] And now b5 would win.} Bd7 $1 {[%emt 0:00:01] Against b5} 74. Nh2 {[%emt 0:00:16] aiming for Kd3.} (74. b5 $5 axb5 75. a6 $16) 74... Bc6 $1 {[%emt 0:00:02]} 75. Kd3 {[%emt 0:00:01]} (75. b5 $5 axb5 76. a6 $16) 75... Bd7 $1 {[%emt 0:00:01]} 76. Ke3 $2 {[%emt 0:00:13][%mdl 8192]} (76. b5 $14 axb5 77. cxb5 Bxb5+ 78. Ke3) 76... Be6 $18 {[%emt 0:00:03]} 77. Kd3 $2 {[%emt 0:00:16]} (77. b5 $18 Bxc4 78. Ng4+ Kf5 79. b6) 77... Bf5+ {[%emt 0:00:02]} ({Better is} 77... Bd7 $1 $11) 78. Kc3 $1 $14 {[%emt 0:00:05] Strongly threatening b5.} Bd7 $1 {[%emt 0:00:01] Prevents b5.} 79. Kd3 {[%emt 0:00:11]} (79. b5 $1 $14 axb5 80. a6) 79... Bf5+ $1 $11 {[%emt 0:00:01]} 80. Ke3 $2 {[%emt 0:00:01]} (80. Kd2 $11) 80... Be6 {[%emt 0:02:21][%mdl 32768] Weighted Error Value: White=0.43/Black=0.36. An unexpected result.} 1/2-1/2

[Event "FIDE WTC Prel-B 2022"]
[Site "Jerusalem"]
[Date "2022.11.20"]
[Round "1.16"]
[White "Kobo, Ori"]
[Black "Gupta, Abhijeet"]
[Result "1/2-1/2"]
[ECO "B53"]
[WhiteElo "2554"]
[BlackElo "2616"]
[Annotator "TA"]
[PlyCount "77"]
[EventDate "2022.11.20"]
[EventType "team-tourn"]
[EventCountry "ISR"]
[SourceTitle "playchess.com"]
[Source "ChessBase"]
[SourceQuality "1"]
[WhiteTeam "Israel"]
[BlackTeam "India"]
[WhiteTeamCountry "ISR"]
[BlackTeamCountry "IND"]
[TimeControl "2700+10"]

{[%evp 11,77,11,23,24,12,16,17,18,18,10,31,24,30,35,28,25,26,18,15,20,18,18,21,20,18,16,11,11,72,66,62,43,43,43,39,39,47,42,54,54,45,43,48,43,43,20,43,43,43,43,42,0,43,8,8,8,8,8,8,8,8,0,0,0,0,0,0,0]} 1. e4 {[%emt 0:00:06]} c5 {[%emt 0:00:16]} 2. Nf3 {[%emt 0:00:08]} d6 {[%emt 0:00:03]} 3. d4 {[%emt 0:00:09]} cxd4 {[%emt 0:00:03]} 4. Qxd4 {[%emt 0:00:04]} Nc6 {[%emt 0:00:18]} 5. Bb5 {[%emt 0:00:03]} Bd7 {[%emt 0:00:21]} 6. Qd3 {[%emt 0:00:15]} g6 {[%emt 0:00:22]} 7. O-O {[%emt 0:00:23] B53: Sicilian: 2...d6: Lines with Qxd4.} Bg7 {[%emt 0:00:03]} 8. c4 {[%emt 0:00:15]} Nf6 {[%emt 0:00:12]} 9. Nc3 {[%emt 0:00:03]} O-O {[%emt 0:00:10]} 10. h3 {[%emt 0:00:14]} a6 {[%emt 0:00:57] [#] aiming for ...Nb4.} 11. Bxc6 {[%emt 0:00:04]} Bxc6 {[%emt 0:00:02]} 12. Nd4 {[%emt 0:00:08]} Rc8 {[%emt 0:00:13]} 13. Be3 {[%emt 0:00:10]} Nd7 {[%emt 0:00:15]} 14. Rac1 {[%emt 0:00:20]} Nc5 {[%emt 0:01:43]} 15. Qc2 {[%emt 0:00:11]} Ne6 {[%emt 0:00:46]} 16. Nxe6 {[%emt 0:00:13]} fxe6 {[%emt 0:00:02]} 17. Ne2 {[%emt 0:00:03]} Qa5 {[%emt 0:10:45]} 18. Nd4 {[%emt 0:00:08] [#]} Bd7 $146 {[%emt 0:05:00]} (18... Qxa2 $2 19. Ra1 (19. Nxe6 Qxb2 20. Qd3 Rf7 $11) 19... Bxe4 20. Qxe4 (20. Rxa2 Bxc2 21. Nxc2 Rxc4 $14) 20... Qxc4 21. Rac1 $18 (21. Qxe6+ Qxe6 22. Nxe6 Rf5 $16)) ({Predecessor:} 18... Qe5 19. f3 g5 20. Qd2 h6 21. b3 Rfd8 22. Rcd1 d5 23. Nxc6 bxc6 24. Bb6 Rd7 25. exd5 exd5 {½-½ (45) Kovalevskaya,E (2453)-Bodnaruk,A (2431) Chita 2015}) 19. Qb3 {[%emt 0:00:17]} Bxd4 {[%emt 0:01:16]} (19... b6 $11 {remains equal.}) 20. Bxd4 $16 {[%emt 0:00:03]} Qa4 {[%emt 0:00:28]} 21. Qxa4 {[%emt 0:10:16] White is more active.} Bxa4 {[%emt 0:00:03]} 22. f3 {[%emt 0:02:16]} Kf7 {[%emt 0:02:12]} 23. b3 {[%emt 0:02:22]} Bd7 {[%emt 0:00:44]} 24. Rfd1 {[%emt 0:00:49]} Rc6 {[%emt 0:01:17]} 25. a4 {[%emt 0:02:45]} b6 {[%emt 0:05:31]} 26. Be3 {[%emt 0:08:41]} Rfc8 {[%emt 0:00:21]} 27. Rb1 {[%emt 0:03:28]} e5 {[%emt 0:01:14]} 28. Kf2 {[%emt 0:04:24]} Be6 {[%emt 0:02:19]} 29. Rdc1 {[%emt 0:02:50]} Ke8 {[%emt 0:03:35]} 30. Ke2 {[%emt 0:00:47]} Kd7 {[%emt 0:02:18][%cal Ob6b5]} 31. h4 {[%emt 0:01:39][%cal Oa4a5]} h5 {[%emt 0:00:10][%cal Ob6b5]} (31... b5 $5) 32. Kd2 {[%emt 0:00:54][%cal Oa4a5]} b5 {[%emt 0:00:44] The position is equal.} 33. cxb5 {[%emt 0:00:28]} Rxc1 {[%emt 0:00:04]} 34. Rxc1 {[%emt 0:00:01]} Rxc1 {[%emt 0:00:05]} 35. Kxc1 {[%emt 0:00:02]} axb5 {[%emt 0:00:07]} 36. axb5 {[%emt 0:00:40]} Bxb3 $11 {[%emt 0:00:03] KB-KB} 37. Kd2 {[%emt 0:00:49]} Bc4 {[%emt 0:00:02]} 38. b6 {[%emt 0:00:05]} Kc6 {[%emt 0:00:02]} 39. Ke1 {[%emt 0:00:18] Weighted Error Value: White=0.04 (flawless) /Black=0.08 (flawless)} 1/2-1/2